[Event "47th GRE-chT 2019"]
[Site "Patra"]
[Date "2019.07.02"]
[Round "1.31"]
[White "Sadzikowski, Daniel"]
[Black "David, Alberto"]
[Result "1/2-1/2"]
[ECO "B06"]
[WhiteElo "2510"]
[BlackElo "2553"]
[Annotator "ChessBase"]
[PlyCount "66"]
[EventDate "2019.07.02"]
[EventCountry "GRE"]
[SourceTitle "playchess.com"]
[Source "ChessBase"]
[SourceQuality "1"]
[TimeControl "5400+30"]

1. e4 {[%emt 0:00:00]} c6 {[%emt 0:01:15]} 2. Nc3 {[%emt 0:00:31]} g6 {[%emt 0:04:39]} 3. d4 {[%emt 0:04:05]} Bg7 {[%emt 0:00:06]} 4. Nf3 {[%emt 0:00:25]} d6 {[%emt 0:07:04]} 5. Be3 {[%emt 0:04:56]} Qb6 {[%emt 0:14:43]} 6. a3 {[%emt 0:16:02]} Nf6 {[%emt 0:02:08]} 7. h3 {[%emt 0:01:36]} O-O {[%emt 0:03:51]} 8. Bd3 {[%emt 0:01:44]} Nbd7 {[%emt 0:15:26]} 9. O-O {[%emt 0:07:59]} Qc7 {[%emt 0:02:03]} 10. Qd2 {[%emt 0:00:05]} e5 {[%emt 0:05:17]} 11. Rfe1 {[%emt 0:04:15]} Re8 {[%emt 0:03:16]} 12. Rad1 {[%emt 0:01:26]} exd4 {[%emt 0:04:08]} 13. Bxd4 {[%emt 0:06:46]} Ne5 {[%emt 0:00:59]} 14. Nh2 {[%emt 0:00:16]} Be6 {[%emt 0:04:48]} 15. f4 {[%emt 0:03:57]} Nxd3 {[%emt 0:07:15]} 16. Qxd3 {[%emt 0:01:52]} Rad8 {[%emt 0:06:42]} 17. f5 {[%emt 0:00:56]} Bc8 {[%emt 0:01:26]} 18. Qf3 {[%emt 0:10:15]} Nd7 {[%emt 0:01:51]} 19. Bxg7 {[%emt 0:01:29]} Kxg7 {[%emt 0:00:05]} 20. Qf4 {[%emt 0:13:29]} Nf6 {[%emt 0:07:56]} 21. Ng4 {[%emt 0:05:09]} Nxg4 {[%emt 0:02:18]} 22. hxg4 {[%emt 0:00:06]} Qe7 {[%emt 0:00:39]} 23. Kf2 {[%emt 0:03:57]} Qe5 {[%emt 0:01:18]} 24. Kf3 {[%emt 0:02:24]} Qxf4+ {[%emt 0:01:35]} 25. Kxf4 {[%emt 0:00:02]} h6 {[%emt 0:00:12]} 26. Rh1 {[%emt 0:02:26]} b6 {[%emt 0:01:09]} 27. Rd2 {[%emt 0:01:35]} Bb7 {[%emt 0:00:15]} 28. Rhd1 {[%emt 0:01:14]} d5 {[%emt 0:00:12]} 29. fxg6 {[%emt 0:02:40]} Kxg6 {[%emt 0:00:31]} 30. exd5 {[%emt 0:00:49]} cxd5 {[%emt 0:00:02]} 31. Nxd5 {[%emt 0:00:11]} Rxd5 {[%emt 0:00:39]} 32. Rd3 {[%emt 0:00:06]} Rd4+ 33. Rxd4 {[%emt 0:00:30]} Bd5 {[%emt 0:00:32]} 1/2-1/2

[Event "47th GRE-chT 2019"]
[Site "Patra"]
[Date "2019.07.02"]
[Round "1.32"]
[White "Theodorou, Nikolas"]
[Black "Molenda, Marcin"]
[Result "1/2-1/2"]
[ECO "D02"]
[WhiteElo "2543"]
[BlackElo "2380"]
[Annotator "ChessBase"]
[PlyCount "92"]
[EventDate "2019.07.02"]
[EventCountry "GRE"]
[SourceTitle "playchess.com"]
[Source "ChessBase"]
[SourceQuality "1"]
[TimeControl "5400+30"]

1. d4 {[%emt 0:00:00]} Nf6 {[%emt 0:00:00]} 2. Nf3 {[%emt 0:00:08]} g6 {[%emt 0:00:00]} 3. Nbd2 {[%emt 0:00:47]} d5 {[%emt 0:00:00]} 4. e3 {[%emt 0:01:02]} Bg7 {[%emt 0:00:00]} 5. b4 {[%emt 0:03:46]} Nbd7 {[%emt 0:02:59]} 6. c4 {[%emt 0:02:07]} e5 {[%emt 0:15:59]} 7. dxe5 {[%emt 0:00:30]} Ng4 {[%emt 0:00:07]} 8. Rb1 {[%emt 0:02:09]} Ndxe5 {[%emt 0:02:48]} 9. h3 {[%emt 0:03:00]} Nxf3+ {[%emt 0:02:19]} 10. Nxf3 {[%emt 0:05:01]} Bf5 {[%emt 0:00:45]} 11. Bb2 {[%emt 0:05:43]} Nf6 {[%emt 0:06:58]} 12. Bd3 {[%emt 0:05:46]} Bxd3 {[%emt 0:00:03]} 13. Qxd3 {[%emt 0:00:42]} O-O {[%emt 0:05:27]} 14. Bxf6 {[%emt 0:00:04]} Qxf6 {[%emt 0:00:12]} 15. cxd5 {[%emt 0:00:54]} Rfd8 {[%emt 0:06:59]} 16. O-O {[%emt 0:00:14]} c6 {[%emt 0:00:08]} 17. e4 {[%emt 0:00:25]} cxd5 {[%emt 0:00:23]} 18. exd5 {[%emt 0:03:50]} Rd7 {[%emt 0:19:56]} 19. Rbd1 {[%emt 0:12:13]} Rad8 {[%emt 0:16:07]} 20. Qb3 {[%emt 0:03:39]} Qf5 {[%emt 0:00:31]} 21. g4 {[%emt 0:00:15]} Qf4 {[%emt 0:05:30]} 22. Rfe1 {[%emt 0:01:14]} h5 {[%emt 0:05:10]} 23. gxh5 {[%emt 0:00:01]} gxh5 {[%emt 0:02:42]} 24. Re3 {[%emt 0:02:20]} Qf5 {[%emt 0:01:26]} 25. Qd3 {[%emt 0:03:21]} Qf4 {[%emt 0:03:00]} 26. Qb3 {[%emt 0:01:49]} Rd6 {[%emt 0:00:01]} 27. Rde1 {[%emt 0:04:37]} Rxd5 {[%emt 0:00:23]} 28. Re8+ {[%emt 0:00:01]} Kh7 {[%emt 0:01:24]} 29. Rxd8 {[%emt 0:00:01]} Rxd8 {[%emt 0:00:54]} 30. Re7 {[%emt 0:04:29]} Kg8 {[%emt 0:00:12]} 31. Rxb7 {[%emt 0:00:53]} Rd6 {[%emt 0:01:28]} 32. Rb8+ {[%emt 0:00:14]} Kh7 {[%emt 0:00:18]} 33. Re8 {[%emt 0:13:34]} Qf5 {[%emt 0:00:43]} 34. h4 {[%emt 0:04:19]} Bd4 {[%emt 0:01:01]} 35. Ng5+ {[%emt 0:00:47]} Kg7 {[%emt 0:00:41]} 36. Qg3 {[%emt 0:02:59]} Rg6 {[%emt 0:00:24]} 37. Re7 {[%emt 0:01:38]} Kf8 {[%emt 0:00:52]} 38. Re2 {[%emt 0:01:47]} Bf6 {[%emt 0:00:14]} 39. f4 {[%emt 0:00:14]} Bd4+ {[%emt 0:00:00]} 40. Kh2 {[%emt 0:00:00]} Rc6 {[%emt 0:00:00]} 41. Qf3 {[%emt 0:00:00]} Rc1 {[%emt 0:00:00]} 42. Ne4 {[%emt 0:00:00]} Be5 {[%emt 0:00:00]} 43. Rf2 {[%emt 0:00:00]} Rc4 {[%emt 0:00:00]} 44. Ng3 {[%emt 4:00:59]} Bxf4 {[%emt 0:00:06]} 45. Qa8+ Kg7 {[%emt 0:00:01]} 46. Rxf4 {[%emt 0:00:03]} Qxf4 {[%emt 0:00:01]} 1/2-1/2

[Event "47th GRE-chT 2019"]
[Site "Patra"]
[Date "2019.07.02"]
[Round "1.33"]
[White "Logothetis, Sotirios"]
[Black "Naoum, Spyridon"]
[Result "1-0"]
[ECO "A84"]
[WhiteElo "2173"]
[BlackElo "2299"]
[Annotator "NA"]
[PlyCount "91"]
[EventDate "2019.07.02"]
[EventCountry "GRE"]
[SourceTitle "playchess.com"]
[Source "ChessBase"]
[SourceQuality "1"]
[TimeControl "5400+30"]

1. d4 {[%emt 0:00:00]} d5 {[%emt 0:10:19]} 2. Nf3 {[%emt 0:02:46]} c6 {[%emt 0:00:43]} 3. c4 {[%emt 0:00:21]} e6 {[%emt 0:00:33]} 4. e3 {[%emt 0:00:15]} f5 {[%emt 0:00:19]} 5. Nc3 {[%emt 0:01:50]} Nf6 {[%emt 0:05:21]} 6. Be2 {[%emt 0:00:15]} Bd6 {[%emt 0:02:45]} 7. Ne5 {[%emt 0:00:15]} O-O {[%emt 0:01:45]} 8. O-O {[%emt 0:00:15]} Nbd7 {[%emt 0:03:25]} 9. f4 {[%emt 0:02:00]} Ne4 {[%emt 0:00:23]} 10. Nxe4 {[%emt 0:04:02]} fxe4 {[%emt 0:01:01]} 11. Bd2 {[%emt 0:00:29]} Nf6 {[%emt 0:11:14]} 12. b4 {[%emt 0:02:01]} Bd7 {[%emt 0:01:00]} 13. a4 {[%emt 0:06:08]} a6 {[%emt 0:04:11]} 14. c5 {[%emt 0:12:52]} Bc7 {[%emt 0:01:35]} 15. b5 {[%emt 0:00:48]} cxb5 {[%emt 0:04:03]} 16. Nxd7 {[%emt 0:03:10]} Qxd7 {[%emt 0:06:05]} 17. axb5 {[%emt 0:00:18]} axb5 {[%emt 0:05:47]} 18. Qb3 {[%emt 0:03:40]} h5 {[%emt 0:01:47]} 19. Qxb5 {[%emt 0:06:39]} Qf7 {[%emt 0:11:42]} 20. Ba5 {[%emt 0:09:17]} Bb8 {[%emt 0:08:22]} 21. Bc3 {[%emt 0:08:15]} Rxa1 {[%emt 0:04:04]} 22. Bxa1 {[%emt 0:00:15]} h4 {[%emt 0:06:48]} 23. Bc3 {[%emt 0:08:00]} g5 {[%emt 0:00:28]} 24. fxg5 {[%emt 0:01:41]} Qc7 {[%emt 0:00:56]} 25. Rf4 {[%emt 0:06:15]} Nh7 {[%emt 0:04:02]} 26. Ba5 {[%emt 0:05:40]} Qe7 {[%emt 0:03:14]} 27. Rxf8+ {[%emt 0:01:21]} Nxf8 {[%emt 0:00:25]} 28. g6 {[%emt 0:07:58]} Qg5 {[%emt 0:00:29]} 29. Bd2 {[%emt 0:01:02]} h3 {[%emt 0:00:35]} 30. g4 {[%emt 0:01:10]} Qe7 {[%emt 0:00:27]} 31. Be1 {[%emt 0:00:54]} Qd7 {[%emt 0:01:09]} 32. Qxd7 {[%emt 0:01:30]} Nxd7 {[%emt 0:00:01]} 33. Bf1 {[%emt 0:01:13]} e5 {[%emt 0:00:22]} 34. Bxh3 {[%emt 0:01:33]} exd4 {[%emt 0:00:04]} 35. exd4 {[%emt 0:00:13]} Bf4 {[%emt 0:00:00]} 36. g5 {[%emt 0:01:09]} Nf8 {[%emt 0:00:05]} 37. Bc8 {[%emt 0:00:17]} Be3+ {[%emt 0:00:14]} 38. Bf2 {[%emt 0:00:16]} Bd2 {[%emt 0:00:09]} 39. Kf1 {[%emt 0:01:29]} Nxg6 {[%emt 0:00:47]} 40. Be6+ {[%emt 0:00:00]} Kf8 {[%emt 0:00:00]} 41. Bxd5 {[%emt 0:00:00]} e3 {[%emt 0:00:00]} 42. Bg3 {[%emt 0:00:00]} Bc3 {[%emt 0:00:00]} 43. Bxb7 {[%emt 0:00:00]} Bxd4 {[%emt 0:00:00]} 44. c6 {[%emt 0:00:00]} Kf7 {[%emt 0:00:00]} 45. c7 {[%emt 0:00:00]} Ne7 {[%emt 0:00:00]} 46. c8=Q {[%emt 0:00:00]} 1-0

[Event "47th GRE-chT 2019"]
[Site "Patra"]
[Date "2019.07.02"]
[Round "1.34"]
[White "Papadopoulos, Argirios"]
[Black "Mathioulakis, Fanis"]
[Result "1/2-1/2"]
[ECO "B38"]
[WhiteElo "2222"]
[BlackElo "1852"]
[Annotator "NA"]
[PlyCount "67"]
[EventDate "2019.07.02"]
[EventCountry "GRE"]
[SourceTitle "playchess.com"]
[Source "ChessBase"]
[SourceQuality "1"]
[TimeControl "5400+30"]

1. e4 {[%emt 0:00:00]} c5 {[%emt 0:02:43]} 2. Nf3 {[%emt 0:00:00]} Nc6 {[%emt 0:00:46]} 3. d4 {[%emt 0:00:00]} cxd4 {[%emt 0:00:06]} 4. Nxd4 {[%emt 0:00:00]} g6 {[%emt 0:02:23]} 5. c4 {[%emt 0:00:41]} Bg7 {[%emt 0:00:20]} 6. Be3 {[%emt 0:00:07]} Nf6 {[%emt 0:00:10]} 7. Nc3 {[%emt 0:00:07]} O-O {[%emt 0:05:23]} 8. Be2 {[%emt 0:00:46]} d6 {[%emt 0:03:30]} 9. O-O {[%emt 0:00:08]} Bd7 {[%emt 0:08:13]} 10. h3 {[%emt 0:05:14]} Nxd4 {[%emt 0:01:41]} 11. Bxd4 {[%emt 0:00:16]} Bc6 {[%emt 0:03:42]} 12. Qd3 {[%emt 0:05:17]} a5 {[%emt 0:06:12]} 13. b3 {[%emt 0:00:58]} Nd7 {[%emt 0:01:00]} 14. Bxg7 {[%emt 0:00:19]} Kxg7 {[%emt 0:08:17]} 15. Bg4 {[%emt 0:07:01]} Nc5 {[%emt 0:02:27]} 16. Qe3 {[%emt 0:16:36]} e5 {[%emt 0:05:30]} 17. f4 {[%emt 0:23:01]} exf4 {[%emt 0:05:14]} 18. Rxf4 {[%emt 0:03:06]} Qe7 {[%emt 0:13:29]} 19. Rd1 {[%emt 0:04:28]} f5 {[%emt 0:05:51]} 20. Qd4+ {[%emt 0:13:38]} Qe5 {[%emt 0:02:15]} 21. exf5 {[%emt 0:08:10]} h5 {[%emt 0:11:56]} 22. Be2 {[%emt 0:00:45]} Ne6 {[%emt 0:00:53]} 23. Qxe5+ {[%emt 0:00:01]} dxe5 {[%emt 0:04:51]} 24. Rf2 {[%emt 0:06:10]} Rxf5 {[%emt 0:01:06]} 25. Rxf5 {[%emt 0:00:01]} gxf5 {[%emt 0:03:24]} 26. Kf2 {[%emt 0:04:07]} h4 {[%emt 0:01:04]} 27. a3 {[%emt 0:00:40]} Nd4 {[%emt 0:00:19]} 28. b4 {[%emt 0:00:27]} axb4 {[%emt 0:00:01]} 29. axb4 {[%emt 0:00:14]} Ra3 {[%emt 0:00:52]} 30. Rc1 {[%emt 0:01:37]} Nb3 {[%emt 0:00:02]} 31. Rc2 {[%emt 0:00:40]} Nd4 {[%emt 0:00:04]} 32. Rc1 {[%emt 0:00:32]} Nb3 {[%emt 0:01:43]} 33. Rd1 {[%emt 0:00:09]} Nd4 {[%emt 0:00:27]} 34. Rc1 {[%emt 0:00:33]} 1/2-1/2

[Event "47th GRE-chT 2019"]
[Site "Patra"]
[Date "2019.07.02"]
[Round "1.35"]
[White "Agnanti, Danai"]
[Black "Antova, Gabriela"]
[Result "0-1"]
[ECO "B80"]
[WhiteElo "1688"]
[BlackElo "2257"]
[Annotator "NA"]
[PlyCount "64"]
[EventDate "2019.07.02"]
[EventCountry "GRE"]
[SourceTitle "playchess.com"]
[Source "ChessBase"]
[SourceQuality "1"]
[TimeControl "5400+30"]

1. e4 {[%emt 0:00:00]} c5 {[%emt 0:00:00]} 2. Nf3 {[%emt 0:00:00]} d6 {[%emt 0:00:00]} 3. d4 {[%emt 0:00:00]} cxd4 {[%emt 0:00:00]} 4. Nxd4 {[%emt 0:00:00]} Nf6 {[%emt 0:00:04]} 5. Nc3 {[%emt 0:00:16]} a6 {[%emt 0:00:16]} 6. Be3 {[%emt 0:00:20]} e6 {[%emt 0:01:31]} 7. f3 {[%emt 0:00:28]} b5 {[%emt 0:00:53]} 8. Qd2 {[%emt 0:00:29]} Nbd7 {[%emt 0:01:02]} 9. g4 {[%emt 0:01:33]} Nb6 {[%emt 0:12:15]} 10. g5 {[%emt 0:10:23]} Nfd7 {[%emt 0:00:12]} 11. O-O-O {[%emt 0:00:37]} Bb7 {[%emt 0:00:30]} 12. Qf2 {[%emt 0:04:55]} Rc8 {[%emt 0:02:31]} 13. Bh3 {[%emt 0:08:10]} Rxc3 {[%emt 0:19:10]} 14. bxc3 {[%emt 0:02:04]} Na4 {[%emt 0:07:45]} 15. Nxe6 {[%emt 0:05:38]} fxe6 {[%emt 0:02:30]} 16. Bxe6 {[%emt 0:00:03]} Nxc3 {[%emt 0:02:39]} 17. Rd3 {[%emt 0:06:46]} Qa5 {[%emt 0:04:56]} 18. Bd4 {[%emt 0:14:00]} b4 {[%emt 0:05:48]} 19. Bxc3 {[%emt 0:12:07]} bxc3 {[%emt 0:01:06]} 20. Qa7 {[%emt 0:01:05]} Qb4 {[%emt 0:09:50]} 21. Rxc3 {[%emt 0:05:16]} Qxc3 {[%emt 0:04:18]} 22. Qxb7 {[%emt 0:00:03]} Qa3+ {[%emt 0:05:24]} 23. Kd2 {[%emt 0:04:14]} Qa5+ {[%emt 0:00:25]} 24. Ke3 {[%emt 0:02:54]} Qxg5+ {[%emt 0:02:05]} 25. Kf2 {[%emt 0:03:11]} Qb5 {[%emt 0:03:06]} 26. Qa8+ {[%emt 0:03:40]} Ke7 {[%emt 0:00:25]} 27. Bd5 {[%emt 0:00:47]} g6 {[%emt 0:00:51]} 28. c4 {[%emt 0:06:34]} Qb6+ {[%emt 0:00:52]} 29. Kg3 {[%emt 0:05:32]} Bg7 {[%emt 0:00:18]} 30. Qc6 {[%emt 0:02:54]} Be5+ {[%emt 0:01:31]} 31. Kg4 {[%emt 0:00:45]} Qf2 {[%emt 0:00:51]} 32. Rb1 {[%emt 0:00:40]} Qg2+ {[%emt 0:00:16] Ra1} 0-1

[Event "47th GRE-chT 2019"]
[Site "Patra"]
[Date "2019.07.02"]
[Round "1.36"]
[White "Vozinaki, Anthi - Maria"]
[Black "Petraki, Argiro"]
[Result "1-0"]
[ECO "B27"]
[WhiteElo "2054"]
[BlackElo "1701"]
[Annotator "NA"]
[PlyCount "47"]
[EventDate "2019.07.02"]
[EventCountry "GRE"]
[SourceTitle "playchess.com"]
[Source "ChessBase"]
[SourceQuality "1"]
[TimeControl "5400+30"]

1. e4 {[%emt 0:00:00]} c5 {[%emt 0:01:06]} 2. Nf3 {[%emt 0:00:15]} b6 {[%emt 0:01:23]} 3. d4 {[%emt 0:00:05]} cxd4 {[%emt 0:00:10]} 4. Nxd4 {[%emt 0:00:10]} Bb7 {[%emt 0:00:00]} 5. Nc3 {[%emt 0:02:18]} a6 {[%emt 0:09:27]} 6. Be3 {[%emt 0:04:00]} e6 {[%emt 0:10:47]} 7. Qd2 {[%emt 0:10:27]} Qc7 {[%emt 0:09:15]} 8. Bd3 {[%emt 0:11:32]} Nf6 {[%emt 0:09:45]} 9. f3 {[%emt 0:06:57]} Bb4 {[%emt 0:06:47]} 10. O-O {[%emt 0:02:07]} O-O {[%emt 0:06:05]} 11. Qf2 {[%emt 0:19:24]} Bxc3 {[%emt 0:00:10]} 12. bxc3 {[%emt 0:00:54]} d5 {[%emt 0:12:01]} 13. Qh4 {[%emt 0:11:41]} dxe4 {[%emt 0:01:45]} 14. fxe4 {[%emt 0:00:42]} Nbd7 {[%emt 0:07:39]} 15. Rae1 {[%emt 0:10:10]} Qe5 {[%emt 0:14:55]} 16. Bg5 {[%emt 0:11:56]} h6 {[%emt 0:01:59]} 17. Bf4 {[%emt 0:03:58]} Qc5 {[%emt 0:03:07]} 18. e5 {[%emt 0:00:55]} Qxc3 {[%emt 0:00:57]} 19. Bxh6 {[%emt 0:00:49]} Nxe5 {[%emt 0:01:02]} 20. Bxg7 {[%emt 0:01:00]} Ng6 {[%emt 0:00:46]} 21. Bxg6 {[%emt 0:00:30]} fxg6 {[%emt 0:00:46]} 22. Qh8+ {[%emt 0:00:10]} Kf7 {[%emt 0:00:08]} 23. Rxf6+ {[%emt 0:00:14]} Ke7 {[%emt 0:00:26]} 24. Bxf8+ {[%emt 0:01:18]} 1-0

[Event "47th GRE-chT 2019"]
[Site "Patra"]
[Date "2019.07.02"]
[Round "1.37"]
[White "Skaraki, Georgia"]
[Black "Karavitaki, Antonia"]
[Result "0-1"]
[ECO "B38"]
[WhiteElo "1257"]
[BlackElo "1481"]
[Annotator "NA"]
[PlyCount "96"]
[EventDate "2019.07.02"]
[EventCountry "GRE"]
[SourceTitle "playchess.com"]
[Source "ChessBase"]
[SourceQuality "1"]
[TimeControl "5400+30"]

1. c4 {[%emt 0:00:00]} c5 {[%emt 0:00:00]} 2. Nf3 {[%emt 0:00:00]} Nc6 {[%emt 0:00:00]} 3. d4 {[%emt 0:00:06]} cxd4 {[%emt 0:00:25]} 4. Nxd4 {[%emt 0:00:16]} g6 {[%emt 0:00:40]} 5. e4 {[%emt 0:01:39]} Bg7 {[%emt 0:00:30]} 6. Be3 {[%emt 0:00:16]} Nf6 {[%emt 0:00:05]} 7. Nc3 {[%emt 0:00:22]} O-O {[%emt 0:00:16]} 8. h3 {[%emt 0:01:20]} d6 {[%emt 0:00:41]} 9. Be2 {[%emt 0:00:34]} Bd7 {[%emt 0:00:27]} 10. O-O {[%emt 0:00:31]} Nxd4 {[%emt 0:01:11]} 11. Bxd4 {[%emt 0:00:49]} Bc6 {[%emt 0:00:37]} 12. Bf3 {[%emt 0:01:24]} Nd7 {[%emt 0:01:39]} 13. Bxg7 {[%emt 0:00:18]} Kxg7 {[%emt 0:00:08]} 14. b4 {[%emt 0:00:34]} Ne5 {[%emt 0:03:40]} 15. Be2 {[%emt 0:01:27]} a5 {[%emt 0:21:34]} 16. a3 {[%emt 0:02:36]} f5 {[%emt 0:10:12]} 17. Qd4 {[%emt 0:04:46]} Kg8 {[%emt 0:01:28]} 18. b5 {[%emt 0:01:11]} Be8 {[%emt 0:05:39]} 19. Nd5 {[%emt 0:02:04]} Rc8 {[%emt 0:02:38]} 20. Nf4 {[%emt 0:03:20]} Qd7 {[%emt 0:03:31]} 21. Nd5 {[%emt 0:00:53]} Rc5 {[%emt 0:01:36]} 22. exf5 {[%emt 0:00:43]} gxf5 {[%emt 0:01:25]} 23. Nf4 {[%emt 0:01:36]} Bf7 {[%emt 0:01:33]} 24. Rac1 {[%emt 0:02:50]} Qc7 {[%emt 0:01:07]} 25. Nd5 {[%emt 0:02:26]} Bxd5 {[%emt 0:00:46]} 26. Qd2 {[%emt 0:02:08]} Bf7 {[%emt 0:01:21]} 27. Qg5+ {[%emt 0:00:34]} Bg6 {[%emt 0:00:14]} 28. Qf4 {[%emt 0:07:29]} Rc8 {[%emt 0:02:11]} 29. Kh2 {[%emt 0:01:19]} Nxc4 {[%emt 0:00:56]} 30. Bxc4+ {[%emt 0:00:48]} Rxc4 {[%emt 0:00:06]} 31. Rxc4 {[%emt 0:00:04]} Qxc4 {[%emt 0:00:08]} 32. Qxc4+ {[%emt 0:02:04]} Rxc4 {[%emt 0:00:07]} 33. Re1 {[%emt 0:00:06]} Kf7 {[%emt 0:00:24]} 34. Re3 {[%emt 0:01:13]} d5 {[%emt 0:00:21]} 35. Kg3 {[%emt 0:00:29]} f4+ {[%emt 0:00:17]} 36. Kf3 {[%emt 0:00:15]} fxe3 {[%emt 0:00:04]} 37. Kxe3 {[%emt 0:00:59]} d4+ {[%emt 0:00:17]} 38. Kd2 {[%emt 0:00:18]} Ra4 {[%emt 0:00:53]} 39. f4 {[%emt 0:00:24]} Rxa3 {[%emt 0:00:06]} 40. h4 {[%emt 0:00:00]} Rc3 {[%emt 0:00:00]} 41. g4 {[%emt 0:00:00]} a4 {[%emt 0:00:00]} 42. f5 {[%emt 0:00:00]} Bxf5 {[%emt 0:00:00]} 43. gxf5 {[%emt 0:00:00]} a3 {[%emt 0:00:00]} 44. f6 {[%emt 0:00:00]} a2 {[%emt 0:00:00]} 45. fxe7 {[%emt 0:00:00]} Kxe7 {[%emt 0:00:00]} 46. h5 {[%emt 0:00:00]} a1=Q {[%emt 0:00:07]} 47. h6 {[%emt 0:00:00]} Qb2+ {[%emt 0:00:00]} 48. Kd1 {[%emt 0:00:00]} Rc1# {[%emt 0:00:00]} 0-1

[Event "47th GRE-chT 2019"]
[Site "Patra"]
[Date "2019.07.02"]
[Round "1.38"]
[White "Georgakopoulos, Nikolaos K."]
[Black "Petrakis, Stylianos"]
[Result "0-1"]
[ECO "A26"]
[WhiteElo "2041"]
[BlackElo "2002"]
[Annotator "NA"]
[PlyCount "56"]
[EventDate "2019.07.02"]
[EventCountry "GRE"]
[SourceTitle "playchess.com"]
[Source "ChessBase"]
[SourceQuality "1"]
[TimeControl "5400+30"]

1. c4 {[%emt 0:00:00]} Nf6 {[%emt 0:00:00]} 2. Nc3 {[%emt 0:00:30]} g6 {[%emt 0:00:00]} 3. g3 {[%emt 0:00:15]} Bg7 {[%emt 0:00:00]} 4. Bg2 {[%emt 0:02:08]} O-O {[%emt 0:00:02]} 5. e4 {[%emt 0:01:36]} e5 {[%emt 0:00:07]} 6. Nge2 {[%emt 0:00:50]} d6 {[%emt 0:00:25]} 7. d3 {[%emt 0:05:17]} Be6 {[%emt 0:00:12]} 8. O-O {[%emt 0:04:34]} Qd7 {[%emt 0:04:53]} 9. f4 {[%emt 0:08:30]} Nc6 {[%emt 0:19:55]} 10. Kh1 {[%emt 0:22:19]} Bh3 {[%emt 0:14:21]} 11. Be3 {[%emt 0:09:27]} Bxg2+ {[%emt 0:00:07]} 12. Kxg2 {[%emt 0:03:22]} Ng4 {[%emt 0:00:28]} 13. Bg1 {[%emt 0:03:15]} f5 {[%emt 0:23:56]} 14. fxe5 {[%emt 0:07:28]} dxe5 {[%emt 0:02:27]} 15. Nd5 {[%emt 0:09:41]} Ne7 {[%emt 0:10:35]} 16. Nxe7+ {[%emt 0:00:02]} Qxe7 {[%emt 0:00:12]} 17. h3 {[%emt 0:01:24]} Nh6 {[%emt 0:00:19]} 18. Be3 {[%emt 0:02:31]} g5 {[%emt 0:01:57]} 19. Bg1 {[%emt 0:04:33]} Rad8 {[%emt 0:03:41]} 20. Nc3 {[%emt 0:08:21]} Qd7 {[%emt 0:01:36]} 21. Qb3 {[%emt 0:01:10]} f4 {[%emt 0:06:03]} 22. Qxb7 {[%emt 0:01:23]} f3+ {[%emt 0:00:38]} 23. Kh2 {[%emt 0:02:18]} Ng4+ {[%emt 0:02:12]} 24. hxg4 {[%emt 0:00:03]} Qxg4 {[%emt 0:05:32]} 25. Bc5 {[%emt 0:00:07]} Rf6 {[%emt 0:02:10]} 26. Ne2 {[%emt 0:00:47]} Rh6+ {[%emt 0:00:01]} 27. Kg1 {[%emt 0:00:43]} fxe2 {[%emt 0:01:03]} 28. Rf2 {[%emt 0:00:20]} Qxg3+ {[%emt 0:00:34]} 0-1

[Event "47th GRE-chT 2019"]
[Site "Patra"]
[Date "2019.07.02"]
[Round "1.39"]
[White "Galanakis, Nikolaos"]
[Black "Patrelakis, Evaggelos"]
[Result "0-1"]
[ECO "B80"]
[WhiteElo "1565"]
[BlackElo "2220"]
[Annotator "NA"]
[PlyCount "82"]
[EventDate "2019.07.02"]
[EventCountry "GRE"]
[SourceTitle "playchess.com"]
[Source "ChessBase"]
[SourceQuality "1"]
[TimeControl "5400+30"]

1. e4 {[%emt 0:00:00]} c5 {[%emt 0:00:00]} 2. Nf3 {[%emt 0:00:00]} d6 {[%emt 0:00:04]} 3. d4 {[%emt 0:00:00]} cxd4 {[%emt 0:00:07]} 4. Nxd4 {[%emt 0:00:00]} Nf6 {[%emt 0:00:10]} 5. Nc3 {[%emt 0:00:00]} e6 {[%emt 0:00:27]} 6. Be3 {[%emt 0:00:09]} a6 {[%emt 0:00:12]} 7. f3 {[%emt 0:00:59]} b5 {[%emt 0:00:08]} 8. Qd2 {[%emt 0:01:10]} Nbd7 {[%emt 0:00:11]} 9. a4 {[%emt 0:00:24]} b4 {[%emt 0:01:59]} 10. Na2 {[%emt 0:00:34]} d5 {[%emt 0:01:46]} 11. Bd3 {[%emt 0:14:54]} dxe4 {[%emt 0:06:38]} 12. fxe4 {[%emt 0:01:40]} Nxe4 {[%emt 0:13:18]} 13. Bxe4 {[%emt 0:07:21]} Qh4+ {[%emt 0:00:08]} 14. g3 {[%emt 0:00:06]} Qxe4 {[%emt 0:00:06]} 15. O-O-O {[%emt 0:00:49]} Qb7 {[%emt 0:08:57]} 16. Rhe1 {[%emt 0:07:25]} b3 {[%emt 0:31:55]} 17. Nxb3 {[%emt 0:09:11]} Be7 {[%emt 0:03:10]} 18. Qc3 {[%emt 0:04:02]} O-O {[%emt 0:01:07]} 19. Na5 {[%emt 0:04:25]} Qf3 {[%emt 0:06:00]} 20. Nc6 {[%emt 0:03:46]} Bf6 {[%emt 0:00:58]} 21. Bd4 {[%emt 0:00:11]} Qxc3 {[%emt 0:02:25]} 22. Nxc3 {[%emt 0:00:54]} Bb7 {[%emt 0:02:30]} 23. Ne5 {[%emt 0:02:13]} Nxe5 {[%emt 0:03:52]} 24. Bxe5 {[%emt 0:00:06]} Bg5+ {[%emt 0:00:06]} 25. Kb1 {[%emt 0:02:49]} Rfd8 {[%emt 0:04:39]} 26. Bc7 {[%emt 0:02:29]} Rdc8 {[%emt 0:00:00]} 27. Bb6 {[%emt 0:00:15]} Rc4 {[%emt 0:01:45]} 28. Rd4 {[%emt 0:01:41]} Rxd4 {[%emt 0:00:40]} 29. Bxd4 {[%emt 0:00:02]} Rc8 {[%emt 0:00:53]} 30. Ne4 {[%emt 0:01:45]} Be7 {[%emt 0:00:19]} 31. b3 {[%emt 0:02:50]} f6 {[%emt 0:00:40]} 32. Kb2 {[%emt 0:05:01]} Kf7 {[%emt 0:00:11]} 33. c3 {[%emt 0:01:21]} e5 {[%emt 0:04:17]} 34. Bf2 {[%emt 0:00:45]} f5 {[%emt 0:01:03]} 35. Nd2 {[%emt 0:00:16]} e4 {[%emt 0:00:33]} 36. Nc4 {[%emt 0:00:41]} Ke6 {[%emt 0:01:06]} 37. Bd4 {[%emt 0:00:37]} g5 {[%emt 0:00:42]} 38. Rd1 {[%emt 0:01:23]} Rd8 {[%emt 0:01:57]} 39. Na5 {[%emt 0:00:17]} Ba8 {[%emt 0:00:12]} 40. b4 {[%emt 0:00:00]} f4 {[%emt 0:00:00]} 41. gxf4 {[%emt 0:00:00]} gxf4 {[%emt 0:00:00]} 0-1